Cogmind - Beta 10.2 @@@ ROGUE MODE // 2021.04.10 @ 18:33:20 Player: Nalzok Result: Destroyed by S-10 Pest with Light Assault Rifle Performance ------------- Evolutions (0) 0 Regions Visited (1) 200 Robots Destroyed (5) 25 Value Destroyed (111) 111 Prototype IDs (0) 0 Alien Tech Used (0) 0 Bonus (0) 0 TOTAL SCORE: 336 Bonus ------- None Cogmind --------- Core Integrity 0/250 Matter 267/300 Energy 100/100 System Corruption 0% Temperature Cool (0) Movement Core (300) Ox5 Location -10/Materials Parts ------- > --- POWER (1) -------- (None) > --- PROPULSION (2) --- (None) > --- UTILITY (2) ------ Large Storage Unit Weapon Shielding > --- WEAPON (2) ------- (None) > --- INVENTORY (10) --- Ion Engine Small Storage Unit Large Storage Unit Large Battery (300) Structural Scanner Propulsion Shielding Propulsion Shielding Peak State ------------ > --- POWER ------------ Light Ion Engine > --- PROPULSION ------- Aluminum Leg Aluminum Leg > --- UTILITY ---------- Small Storage Unit Propulsion Shielding > --- WEAPON ----------- EM Pulse Gun Small Laser > --- INVENTORY -------- Ion Engine Ion Engine Medium Laser [Rating: 7] Favorites ----------- Power Ion Engine Engine Ion Engine Propulsion Aluminum Leg Leg Aluminum Leg Utility Small Storage Unit Storage Small Storage Unit Protection Propulsion Shielding Weapon EM Pulse Gun Energy Gun EM Pulse Gun Ballistic Cannon Light Cannon Build | -11 -10 ------- Run | Scr Mat Slots Evolved . | . . Power . | . . Propulsion . | . . Utility . | . . Weapon . | . . Parts Attached 9 | . 9 Power 2 | . 2 Engine 2 | . 2 Core . | . . Reactor . | . . Propulsion 2 | . 2 Treads . | . . Leg 2 | . 2 Wheel . | . . Hover . | . . Flight . | . . Utility 3 | . 3 Device . | . . Storage 1 | . 1 Processor . | . . Hackware . | . . Protection 2 | . 2 Artifact . | . . Weapon 2 | . 2 Energy Gun 1 | . 1 Energy Cannon . | . . Ballistic Gun . | . . Ballistic Cannon 1 | . 1 Launcher . | . . Special Weapon . | . . Impact Weapon . | . . Slashing Weapon . | . . Piercing Weapon . | . . Special Melee Weapon . | . . Unidentified Prototypes . | . . Parts Lost 8 | . 8 Power 1 | . 1 Propulsion 3 | . 3 Utility . | . . Weapon 4 | . 4 Highest Loss Streak 5 | . 5 Average Slot Usage (%) 90 | . 90 Engine 12 | . 12 Leg 27 | . 27 Storage 14 | . 14 Protection 12 | . 12 Energy Gun 18 | . 18 Ballistic Cannon 3 | . 3 Naked Turns . | . . Heaviest Build 20 | 10 20 Greatest Support 20 | 20 20 Greatest Overweight (x) 5 | . 5 Average Overweight (x) . | . . Largest Inventory Capacity 10 | 6 10 Average Capacity 6 | 6 6 Most Carried 7 | 5 7 Average Carried 5 | 4 5 Final Capacity 10 | 6 10 Final Carried 7 | 2 7 Class Distribution -------------------- 100% | Mutant Dominant Class ---------------- Mutant | -10/Materials Resources | -11 -10 ----------- Run | Scr Mat Matter Collected 230 | 198 32 Remotely . | . . Salvage Created 139 | . 139 Parts 7 | . 7 Haulers Intercepted . | . . Recyclers Shooed . | . . Parts Field Recycled . | . . Retrieved Matter . | . . Parts Self-Destructed . | . . Prevented . | . . Kills | -11 -10 ------- Run | Scr Mat Combat Hostiles Destroyed 5 | . 5 Guns 5 | . 5 Classes Destroyed 2 | . 2 Swarmer 3 | . 3 Grunt 2 | . 2 Best Kill Streak 3 | . 3 Combat Bots Only 3 | . 3 Max Kills in Single Turn 1 | . 1 Gunslinging . | . . Exploded . | . . Melee . | . . Uniques/NPCs Destroyed . | . . Combat | -11 -10 -------- Run | Scr Mat Damage Taken 1026 | . 1026 Core 250 | . 250 Absorbed by Shields . | . . Core Remaining (%) 100 | 100 . Volleys Fired 19 | . 19 Largest 2 | . 2 Hottest 90 | . 90 Shots Fired 37 | . 37 Gun 37 | . 37 Cannon . | . . Launcher . | . . Special . | . . Kinetic . | . . Thermal 18 | . 18 Explosive . | . . Electromagnetic 19 | . 19 Robot Hit Streak 10 | . 10 Robot Miss Streak 4 | . 4 Penetration Max . | . . Secondary Targets . | . . Shots Hit Robots 22 | . 22 Core Hits 8 | . 8 Critical Hits . | . . Critical Kills . | . . Critical Parts Destroyed . | . . Melee Attacks . | . . Impact . | . . Slashing . | . . Piercing . | . . Sneak Attacks . | . . Combat Hostiles . | . . Follow-up Attacks . | . . Damage Inflicted 302 | . 302 Guns 258 | . 258 Cannons . | . . Explosions 32 | . 32 Melee . | . . Ramming 12 | . 12 Kinetic . | . . Thermal 119 | . 119 Explosive . | . . Electromagnetic 171 | . 171 Impact . | . . Slashing . | . . Piercing . | . . Highest Corruption . | . . Average Corruption . | . . Corruption Purged . | . . Overload Shots . | . . Overflow Damage 12 | . 12 Projectiles . | . . Explosions 12 | . 12 Melee . | . . Knockbacks . | . . Impact . | . . Kinetic . | . . Secondary . | . . Self-Inflicted Damage . | . . Shots . | . . Rammed . | . . Targets Rammed 2 | . 2 Kicked 2 | . 2 Crushed . | . . Highest Temperature 164 | . 164 Average Temperature 78 | . 78 Received Heat Transfer 171 | . 171 Siege Activations . | . . Robots Corrupted . | . . Combat Hostiles . | . . Parts Fried . | . . Impact Corruptions . | . . Robots Melted . | . . Combat Hostiles . | . . Parts Melted . | . . Heat Transferred 274 | . 274 Parts Sabotaged . | . . Parts Stolen . | . . Parts Stripped . | . . Power Chain Reactions 1 | . 1 Missiles Intercepted . | . . Alert | -11 -10 ------- Run | Scr Mat Peak Influence 189 | . 189 Initial . | . . Average 101 | . 102 Maximum Alert Level . | . . Low Security (%) 100 | 100 100 Level 1 . | . . Level 2 . | . . Level 3 . | . . Level 4 . | . . Level 5 . | . . High Security . | . . Max Security . | . . Squads Dispatched 2 | . 2 Investigation . | . . Extermination . | . . Reinforcement 2 | . 2 Assault . | . . Garrison . | . . Intercept . | . . Construction Impeded . | . . Haulers Reinforced . | . . Stealth | -11 -10 --------- Run | Scr Mat Distress Signals 1 | . 1 Communications Jammed . | . . Distress Signals . | . . Times Spotted 18 | . 18 Peak Tracking Total 7 | . 7 Tactical Retreats 2 | . 2 Traps | -11 -10 ------- Run | Scr Mat Traps Triggered . | . . Indirectly . | . . Trap Hack Attempts . | . . Triggered . | . . Disarmed . | . . Reprogrammed . | . . Reused . | . . Traps Extracted . | . . Installed . | . . Triggered . | . . Machines | -11 -10 ---------- Run | Scr Mat Machines Disabled . | . . Max in Single Turn . | . . Machines Sabotaged . | . . Garrisons Compromised . | . . Overloaded Fab Kills . | . . Fab Network Shutdowns . | . . Hacking | -11 -10 --------- Run | Scr Mat Machines Accessed 1 | . 1 Terminals 1 | . 1 Fabricators . | . . Repair Stations . | . . Recycling Units . | . . Scanalyzers . | . . Garrison Access . | . . Total Hacks 4 | . 4 Successful 3 | . 3 Failed 1 | . 1 Catastrophic . | . . Database Lockouts . | . . Manual 4 | . 4 Terminals 4 | . 4 Fabricators . | . . Repair Stations . | . . Recycling Units . | . . Scanalyzers . | . . Garrison Access . | . . Terminal Hacks 1 | . 1 Branch Access Points 1 | . 1 Fabricator Hacks . | . . Repair Station Hacks . | . . Recycling Unit Hacks . | . . Scanalyzer . | . . Garrison Access Hacks . | . . Unauthorized Hacks 2 | . 2 Terminals 2 | . 2 Botnet 1 | . 1 Operators 1 | . 1 Fabricators . | . . Repair Stations . | . . Recycling Units . | . . Scanalyzers . | . . Garrison Access . | . . Data Cores Recovered . | . . Used . | . . Hacking Detections 1 | . 1 Full Trace Events . | . . Feedback Events . | . . Feedback Blocked . | . . Robot Schematics Acquired . | . . Robots Built . | . . Matter . | . . Time . | . . Total Robot Build Rating . | . . Part Schematics Acquired . | . . Parts Built . | . . Matter . | . . Time . | . . Total Part Build Rating . | . . Parts Repaired . | . . Time . | . . Parts Recycled . | . . Recycled Matter . | . . Retrieved Matter . | . . Retrieved Components . | . . Parts Scanalyzed . | . . Part Schematics Acquired . | . . Parts Damaged . | . . Bothacking | -11 -10 ------------ Run | Scr Mat Used RIF Installer . | . . Robots Hacked . | . . Non-combat . | . . Combat . | . . Robot Hacks Applied . | . . Relay Couplers Released . | . . Robots Rewired . | . . Allies Hacked . | . . Hacks Repelled . | . . Allies | -11 -10 -------- Run | Scr Mat Total Allies . | . . Largest Group . | . . Highest-Rated Group . | . . Highest-Rated Ally . | . . Total Orders . | . . Ally Attacks . | . . Total Damage . | . . Kills . | . . Allies Corrupted . | . . Allies Melted . | . . Intel | -11 -10 ------- Run | Scr Mat Robot Analysis Total . | . . Derelict Logs Recovered . | . . Drone Launches . | . . Drone Recoveries . | . . Exploration | -11 -10 ------------- Run | Scr Mat Turns Passed 337 | 2 335 Spaces Moved 177 | 1 176 Core 1 | . 1 Treads . | . . Legs 176 | 1 175 Wheels . | . . Hover . | . . Flight . | . . Fastest Speed 120 | 120 120 Average Speed 121 | 120 121 Slowest Speed 300 | 120 300 Overloaded Moves . | . . Propulsion Burnouts . | . . Robots Hopped . | . . Cave-ins Triggered . | . . Exploration Rate (%) 25 | 1 49 Regions Visited 1 Branch Regions . Pre-discovered Areas . | . . Known Exits Taken . | . . Unknown Exits Taken 1 | 1 . Scrap Searched . | . . Spaces Dug . | . . Terrain Destroyed . | . . Melee . | . . Projectile . | . . AOE . | . . Terrain Rammed . | . . Walls Destroyed . | . . Machines Disabled . | . . Actions | -11 -10 --------- Run | Scr Mat Total 263 | 4 259 Wait 40 | . 40 Move 176 | . 176 Hop . | . . Pick Up 8 | . 8 Fast Attach 3 | . 3 Attach 2 | . 2 Detach . | . . Swap 4 | . 4 Drop 9 | 4 5 Fire 19 | . 19 Melee . | . . Ram . | . . Kick 2 | . 2 Crush . | . . Escape Stasis . | . . Rewire . | . . Trap . | . . Miscellaneous . | . . Route ------- -11/Scrapyard -10/Materials (discovered 3 exits: [*Mat] / *Min x2) History --------- Turn | Location | Event 3 | -11/Scrapyard | Discovered new exit (range 0) 3 | -11/Scrapyard | Entered Materials 33 | -10/Materials | Identified exit to Mines 256 | -10/Materials | Discovered new exit (range 16) 297 | -10/Materials | Core integrity fell below 50% 333 | -10/Materials | Core integrity fell below 20% 338 | -10/Materials | Destroyed by S-10 Pest with Light Assault Rifle Last Messages --------------- 00244_ K-01 Serf collects debris. 00246_ Acquired Lgt. Cannon. 00248_ K-01 Serf collects debris. 00250_ R-06 Scavenger collects Flight Unit. 00250_ K-01 Serf collects debris. 00256_ EXIT=FOUND 00271_ Dropped Aluminum Leg. 00275_ Dropped Ion Engine. 00275_ Acquired Aluminum Leg. 00278_ Kicked S-10 Pest out of the way. 00296_ K-01 Serf cleans the Hadron Collector. 00301_ Aluminum Leg destroyed. 00301_ Ion Engine destroyed. 00307_ O-16 Technician: "IFF HANDSHAKE FAILED. SECURING TERMINAL." 00314_ ALERT: Hostiles spotted, dispatching reinforcements to Terminal M006. 00326_ Acquired Lrg. Storage Unit. 00327_ Aluminum Leg destroyed. 00330_ Lgt. Cannon destroyed. 00334_ Aluminum Leg destroyed. Map ----- +----------------------------------------------------+ | | | | | | | | | | | | | ?????????????????????????????????? | | ?????????????????????????????????? | | ?????????????????????????????????? | | ?????????????????????????????????? | | ?????????????????????????????????? | | ?????????????????????????????????? | | ???????????????????????????????### | | ??????????????????????????????? | | ??????????????????????????????# < | | ??????####????????????????????# | | ?????##"""##??????????????????# | | ????##"|||"## ????????????????# | | ????#"" ""# ????? ???####??# | | ????# #? """ #?# ?# | | ????# > ?? #?# """?# | | ????# ??? """ #?#= """ # | | ????# ???? """ #?# """ # | | ?????# ?????""" !??# """ / | | ??????# #????? ???# # | | ?????o# @#######+###??######## | | ??????+ s #????????## | | ??????# ########## | | ??????# | | ??????# # s ############# | | ??????# #! !#???????????# | | ??????# #! !#???????????# | | ??????# ##! !##???########## | | ??????# #######???? # | | ??????# #?????????? """ """ # | | ??????# ??????????# """ """ / | | ??????# u ??????????# """ """ # | | ??????# ??????????# # | | ??????# ??????????# + | | ?????? ??????????# * ## # | | ?????? ??????????############ # | | ?????? ?????##########??????# # | | ???????????????# #??????#/# | | ???????????????#"" #??????# " | | ???????????????#"Y #??????# " | | ???????????????#"" !#??????# " | | ???????????????# ! #??????# | | ???????????????# """ #??????# | | ???????????????# """ #??????# | | ???????????????# """ #??????# | +----------------------------------------------------+ Best States ------------- Heat Dissipation 25 Energy Generation 10 Energy Capacity 250 Matter Stores 300 Matter Capacity 300 Sight Range 16 Terrain Scan Density 10 Propulsion Shielding 33 Weapon Shielding 33 Evasion (%) 40 Item Schematics ----------------- None Robot Schematics ------------------ None Fabricated ------------ Nothing Alien Tech Used ----------------- None Achievements -------------- None Challenges ------------ None Game ------ Seed MetafieldCombatRecalibrator Manual? 0 Play Time 00:05:23 Cumulative 318.4 hours Start 2021.04.10 @ 18:30:26 End 2021.04.10 @ 18:33:20 Sessions 1 Manual Loads 0 Difficulty Rogue Special Mode None Game No. 456 Rogue 455 Adventurer 0 Explorer 1 Win Type - Total 2 Types 2/0/0/0/0/0/0/0/0 Lore% 71 Gallery% 84 Achievement% 60 Wizard Run 0 Options --------- ASCII 1 Keyboard 1 Movement Vi Keybinds 0 Fullscreen 2 Font 14/Cog Map View 72x54 Tactical HUD 1 Map Filters NONE Filters LOW_CONTRAST(13,24,33) Steam 0 RUN: 572be520-19cb-4b33-bf29-9a94e9e48ffd